Cogmind - Beta 15 @@@ ROGUE MODE // 2025.09.21 @ 02:13:32 Player: Kotyk77 Result: Destroyed by as-14291 with Assembled Blade Performance ------------- Evolutions (0) 0 Regions Visited (2) 400 Robots Destroyed (12) 60 Value Destroyed (350) 350 Prototype IDs (0) 0 Alien Tech Used (0) 0 Bonus (0) 0 TOTAL SCORE: 810 Bonus ------- None Cogmind --------- Core Integrity 0/250 Matter 279/300 Energy 140/140 System Corruption 1% Temperature Cool (0) Movement Walking (260) Ox2 Location -10/Mines Parts ------- > --- POWER (1) -------- Light Deuterium Engine > --- PROPULSION (2) --- Aluminum Leg > --- UTILITY (2) ------ Large Storage Unit Trap Extractor (0/4) > --- WEAPON (2) ------- Flail > --- INVENTORY (15) --- Nuclear Core VSS Leg High-capacity Matter Pod (158) Sensor Array Improved Signal Interpreter Advanced Targeting Computer Assault Rifle Assault Rifle Flail Peak State ------------ > --- POWER ------------ Light Deuterium Engine > --- PROPULSION ------- Aluminum Leg Aluminum Leg > --- UTILITY ---------- Large Storage Unit Trap Extractor > --- WEAPON ----------- Light Cannon Flail > --- INVENTORY -------- Nuclear Core VSS Leg High-capacity Matter Pod Sensor Array Improved Signal Interpreter Advanced Targeting Computer Assault Rifle Assault Rifle Flail Heavy Explosive Trap Heavy Explosive Trap Heavy Explosive Trap [Rating: 13] Favorites ----------- Power Light Ion Engine Engine Light Ion Engine Propulsion Aluminum Leg Leg Aluminum Leg Wheel Compact Wheel Utility Signal Interpreter Device Trap Extractor Storage Large Storage Unit Processor Signal Interpreter Weapon Flail Ballistic Gun Assault Rifle Ballistic Cannon Light Cannon Impact Weapon Flail Build | -11 -10 -10 ------- Run | Yrd Mat Min Slots Evolved . | . . . Power . | . . . Propulsion . | . . . Utility . | . . . Weapon . | . . . Parts Attached 16 | 6 8 2 Power 2 | 1 . 1 Engine 2 | 1 . 1 Core . | . . . Reactor . | . . . Propulsion 5 | 2 2 1 Treads . | . . . Leg 3 | . 2 1 Wheel 2 | 2 . . Hover . | . . . Flight . | . . . Utility 5 | 1 4 . Device 1 | . 1 . Storage 3 | 1 2 . Processor 1 | . 1 . Hackware . | . . . Protection . | . . . Artifact . | . . . Weapon 4 | 2 2 . Energy Gun . | . . . Energy Cannon . | . . . Ballistic Gun 2 | 2 . . Ballistic Cannon 1 | . 1 . Launcher . | . . . Special Weapon . | . . . Impact Weapon 1 | . 1 . Slashing Weapon . | . . . Piercing Weapon . | . . . Special Melee Weapon . | . . . Unidentified Prototypes . | . . . Parts Lost 5 | . 1 4 Power 1 | . . 1 Propulsion 3 | . 1 2 Utility . | . . . Weapon 1 | . . 1 Highest Loss Streak 4 | . 1 4 To Critical Strikes . | . . . Average Backups 8 | 2 7 12 Power 1 | . 1 2 Propulsion 1 | 1 1 2 Utility 3 | . 2 4 Weapon 2 | . 2 3 Tool/Special . | . . . Unused Backups 10 | . 1 9 Power 2 | . . 2 Propulsion 1 | . . 1 Utility 5 | . 1 4 Weapon 2 | . . 2 Tool/Special . | . . . Average Slot Usage (%) 97 | . 96 98 Engine 13 | . 14 13 Leg 18 | . 12 27 Wheel 9 | . 15 . Device 3 | . 5 . Storage 14 | . 14 14 Processor 8 | . 5 13 Ballistic Gun 7 | . 11 . Ballistic Cannon 8 | . 5 13 Impact Weapon 12 | . 10 14 Peak Build Rating 13 | 6 9 13 Average Rating 8 | 4 8 10 On Entrance 5 | . 6 9 Naked Turns . | . . . Heaviest Build 30 | 11 28 30 Greatest Support 26 | 26 26 20 Greatest Overweight (x) 2 | . 1 2 Average Overweight (x) . | . . 1 Largest Inventory Capacity 15 | 8 15 15 Average Capacity 12 | 6 11 15 Most Carried 15 | 4 9 15 Average Carried 9 | 2 7 13 Final Capacity 15 | 8 15 15 Final Carried 9 | 4 9 9 Class Distribution -------------------- 100% | Mutant Dominant Class ---------------- Mutant | -10/Materials Mutant | -10/Mines Resources | -11 -10 -10 ----------- Run | Yrd Mat Min Matter Collected 592 | 242 203 147 Remotely . | . . . Salvage Created 267 | . 252 15 Parts 9 | . 7 2 Haulers Intercepted . | . . . Recyclers Shooed 1 | . . 1 Parts Field Recycled . | . . . Retrieved Matter . | . . . Parts Self-Destructed . | . . . Prevented . | . . . Kills | -11 -10 -10 ------- Run | Yrd Mat Min Combat Hostiles Destroyed 7 | . 4 3 Melee 1 | . 1 . Guns 1 | . 1 . Cannons 3 | . . 3 Classes Destroyed 6 | . 4 2 Worker 1 | . 1 . Operator 1 | . 1 . Watcher 3 | . 3 . Swarmer 1 | . . 1 Grunt 4 | . 4 . Demolisher 2 | . . 2 Best Kill Streak 4 | . 4 2 Combat Bots Only 2 | . 2 2 Max Kills in Single Turn 1 | . 1 1 Gunslinging . | . . . Exploded . | . . . Melee 1 | . 1 . Uniques/NPCs Destroyed . | . . . Combat | -11 -10 -10 -------- Run | Yrd Mat Min Hostile Shots Fired 56 | . 21 35 Missed 9 | . 3 6 Hits 47 | . 18 29 Melee 8 | . . 8 Projectile 39 | . 18 21 AOE 9 | . . 9 Critical Strikes 1 | . 1 . Damage Taken 945 | . 223 722 Core 272 | . 12 260 Absorbed by Shields . | . . . Core Remaining (%) 100 | 100 . . Volleys Fired 28 | . 22 6 Largest 2 | . 2 1 Hottest 40 | . 40 30 Shots Fired 33 | . 27 6 Gun 22 | . 22 . Cannon 11 | . 5 6 Launcher . | . . . Special . | . . . Kinetic 33 | . 27 6 Thermal . | . . . Explosive . | . . . Electromagnetic . | . . . Robot Hit Streak 8 | . 8 3 Robot Miss Streak 4 | . 4 3 Penetration Max . | . . . Secondary Targets . | . . . Shots Hit Robots 31 | . 26 5 Core Hits 12 | . 9 3 Critical Kills . | . . . Critical Parts Destroyed 3 | . 3 . Critical Strikes 3 | . 3 . Smash 3 | . 3 . Melee Attacks 17 | . 14 3 Impact 17 | . 14 3 Slashing . | . . . Piercing . | . . . Sneak Attacks 3 | . 2 1 Combat Hostiles . | . . . Follow-up Attacks . | . . . Damage Inflicted 768 | . 621 147 Guns 170 | . 170 . Cannons 90 | . 36 54 Explosions . | . . . Melee 508 | . 415 93 Ramming . | . . . Kinetic 260 | . 206 54 Thermal . | . . . Explosive . | . . . Electromagnetic . | . . . Impact 508 | . 415 93 Slashing . | . . . Piercing . | . . . Highest Corruption 1 | . 1 1 Average Corruption 1 | . 1 1 Corruption Purged . | . . . Corruption Blocked . | . . . Effects 4 | . . 4 Message Errors 1 | . . 1 Matter Fused 1 | . . 1 Energy Discharges 2 | . . 2 Overload Shots . | . . . Overflow Damage 206 | . 194 12 Projectiles . | . . . Explosions . | . . . Melee 206 | . 194 12 Knockbacks 2 | . 2 . Impact 2 | . 2 . Kinetic . | . . . Secondary . | . . . Self-Inflicted Damage . | . . . Shots . | . . . Rammed . | . . . Targets Rammed . | . . . Kicked . | . . . Crushed . | . . . Highest Temperature 9 | . 9 3 Average Temperature 3 | . 9 2 Received Heat Transfer 258 | . 138 120 Siege Activations . | . . . Martial Activations . | . . . Shielding Activations . | . . . Robots Disrupted . | . . . Combat Hostiles . | . . . Robots Corrupted 3 | . 3 . Combat Hostiles 2 | . 2 . Parts Fried 2 | . 2 . Impact Corruptions 8 | . 7 1 Robots Melted . | . . . Combat Hostiles . | . . . Parts Melted 1 | . 1 . Heat Transferred . | . . . Parts Sabotaged . | . . . Parts Stolen . | . . . Parts Stripped . | . . . Power Chain Reactions . | . . . Alert | -11 -10 -10 ------- Run | Yrd Mat Min Maximum Alert Level . | . . . Low Security (%) 100 | 100 100 100 Level 1 . | . . . Level 2 . | . . . Level 3 . | . . . Level 4 . | . . . Level 5 . | . . . High Security . | . . . Max Security . | . . . Peak Influence 97 | . 97 30 Initial . | . . . Average 18 | . 29 3 Influence Increases 272 | . 197 75 Destroy 0b10 Robot/C 140 | . 80 60 Destroy 0b10 Robot/NC 25 | . 25 . Destroy Leader 36 | . 26 10 Successful Hack 11 | . 6 5 Disable Machine 30 | . 30 . Partial Spotted 15 | . 15 . Lose Combat Pursuer 15 | . 15 . Influence Decreases 272 | . 197 75 Time Decay 232 | . 187 45 Lost Part 40 | . 10 30 Squads Dispatched 4 | . 3 1 Investigation 2 | . 1 1 Extermination . | . . . Reinforcement 2 | . 2 . Assault . | . . . Garrison . | . . . Intercept . | . . . Searches Triggered . | . . . Construction Impeded . | . . . Haulers Reinforced . | . . . Active Scanning Responses . | . . . Cargo Convoy Interrupts . | . . . Stealth | -11 -10 -10 --------- Run | Yrd Mat Min Distress Signals 2 | . 2 . Communications Jammed . | . . . Distress Signals . | . . . Times Spotted 20 | . 10 10 Peak Tracking Total 7 | . 2 7 Tactical Retreats 1 | . 1 . Traps | -11 -10 -10 ------- Run | Yrd Mat Min Traps Triggered . | . . . Indirectly . | . . . Trap Hack Attempts . | . . . Triggered . | . . . Disarmed . | . . . Reprogrammed . | . . . Reused . | . . . Traps Extracted . | . . . Installed . | . . . Triggered . | . . . Most Traps Carried 3 | . . 3 Machines | -11 -10 -10 ---------- Run | Yrd Mat Min Machines Disabled 2 | . 2 . Max in Single Turn 1 | . 1 . Machines Repaired . | . . . Machines Dismantled . | . . . Machines Sabotaged . | . . . Overloaded Fab Kills . | . . . Hacking | -11 -10 -10 --------- Run | Yrd Mat Min Machines Accessed 3 | . 1 2 Terminals 2 | . 1 1 Fabricators . | . . . Repair Stations . | . . . Recycling Units . | . . . Scanalyzers . | . . . Garrison Access . | . . . Total Hacks 6 | . 4 2 Successful 3 | . 1 2 Failed 3 | . 3 . Catastrophic 1 | . 1 . Database Lockouts . | . . . Manual 4 | . 4 . Terminals 5 | . 4 1 Fabricators . | . . . Repair Stations . | . . . Recycling Units . | . . . Scanalyzers . | . . . Garrison Access . | . . . Terminal Hacks 3 | . 1 2 Open Door 1 | . . 1 Terminal Index 1 | . 1 . Zone Layout 1 | . . 1 Fabricator Hacks . | . . . Repair Station Hacks . | . . . Recycling Unit Hacks . | . . . Scanalyzer . | . . . Garrison Access Hacks . | . . . Unauthorized Hacks . | . . . Terminals . | . . . Fabricators . | . . . Repair Stations . | . . . Recycling Units . | . . . Scanalyzers . | . . . Garrison Access . | . . . Data Cores Recovered . | . . . Used . | . . . Hacking Detections 2 | . 1 1 Full Trace Events 1 | . 1 . Feedback Events 1 | . 1 . Corruption 1 | . 1 . Feedback Blocked . | . . . Robot Schematics Acquired . | . . . Robots Built . | . . . Authchips . | . . . Time . | . . . Total Robot Build Rating . | . . . Part Schematics Acquired . | . . . Parts Built . | . . . Authchips . | . . . Time . | . . . Total Part Build Rating . | . . . Parts Repaired . | . . . Time . | . . . Parts Recycled . | . . . Recycled Matter . | . . . Retrieved Matter . | . . . Retrieved Components . | . . . Parts Scanalyzed . | . . . Part Schematics Acquired . | . . . Parts Damaged . | . . . Bothacking | -11 -10 -10 ------------ Run | Yrd Mat Min Used RIF Installer . | . . . Robots Hacked . | . . . Non-combat . | . . . Combat . | . . . Robot Hacks Applied . | . . . Relay Couplers Released . | . . . Fabnet Peak Effective % . | . . . Robots Rewired . | . . . Allies Hacked . | . . . Hacks Repelled . | . . . Allies | -11 -10 -10 -------- Run | Yrd Mat Min Total Allies . | . . . Largest Group . | . . . Highest-Rated Group . | . . . Highest-Rated Ally . | . . . Total Orders . | . . . Ally Attacks . | . . . Total Damage . | . . . Kills . | . . . Allies Corrupted . | . . . Allies Melted . | . . . Intel | -11 -10 -10 ------- Run | Yrd Mat Min Active Infowar (turns) . | . . . Robot Analysis Total . | . . . Derelict Logs Recovered . | . . . Drone Launches . | . . . Drone Recoveries . | . . . Exploration | -11 -10 -10 ------------- Run | Yrd Mat Min Turns Passed 899 | 59 530 310 Spaces Moved 542 | 53 344 145 Core 4 | 4 . . Treads . | . . . Legs 267 | . 122 145 Wheels 271 | 49 222 . Hover . | . . . Flight . | . . . Fastest Speed 50 | 50 90 190 Average Speed 137 | 86 122 190 Slowest Speed 260 | 90 190 260 Overloaded Moves . | . . . Propulsion Burnouts . | . . . Robots Hopped . | . . . Potential Cave-ins . | . . . Cave-ins Triggered . | . . . Exploration Rate (%) 25 | 4 44 29 Regions Visited 2 Branch Regions 1 Pre-discovered Areas . | . . . Known Exits Taken 1 | . 1 . Unknown Exits Taken 1 | 1 . . Scrap Searched . | . . . Spaces Dug . | . . . Terrain Destroyed . | . . . Melee . | . . . Projectile . | . . . AOE . | . . . Terrain Rammed . | . . . Walls Destroyed . | . . . Machines Disabled . | . . . Actions | -11 -10 -10 --------- Run | Yrd Mat Min Total 638 | 62 406 170 Wait 5 | . 5 . Move 540 | 52 343 145 Hop . | . . . Pick Up 21 | 4 9 8 Fast Attach 7 | 6 1 . Attach 3 | . 1 2 Detach . | . . . Swap 7 | . 6 1 Drop 10 | . 5 5 Fire 28 | . 22 6 Melee 17 | . 14 3 Ram . | . . . Kick . | . . . Crush . | . . . Escape Stasis . | . . . Rewire . | . . . Trap . | . . . Miscellaneous . | . . . Route ------- -11/Scrapyard -10/Materials (discovered 2 exits: *Mat / *Min) -10/Mines History --------- Turn | Location | Event 7 | -11/Scrapyard | Discovered new exit (range 16) 60 | -11/Scrapyard | Entered Materials 300 | -10/Materials | Build established: Mutant 359 | -10/Materials | Discovered new exit (range 6) 366 | -10/Materials | Identified exit to Materials 548 | -10/Materials | Discovered new exit (range 12) 588 | -10/Materials | Identified exit to Mines 590 | -10/Materials | Entered Mines 601 | -10/Mines | Met a Derelict shopkeep closing up shop 689 | -10/Mines | Found a hidden stash of uninstalled traps 824 | -10/Mines | Assembled infested the area 829 | -10/Mines | Assisted by a Guerilla fighting off Assembled 892 | -10/Mines | Core integrity fell below 50% 895 | -10/Mines | Core integrity fell below 20% 900 | -10/Mines | Destroyed by as-14291 with Assembled Blade Last Messages --------------- 00867_ D-53 Grenadier destroyed. 00869_ T-07 Excavator is excavating. 00869_ Aluminum Leg destroyed. 00871_ The unstable cave ceiling collapses. 00871_ D-53 Grenadier destroyed. 00873_ T-07 Excavator is excavating. 00877_ The unstable cave ceiling collapses. 00879_ Acquired 3 matter. 00880_ The unstable cave ceiling collapses. 00881_ T-07 Excavator is excavating. 00889_ The unstable cave ceiling collapses. 00893_ Discarded Signal Interpreter. 00894_ The unstable cave ceiling collapses. 00894_ Lgt. Cannon destroyed. 00894_ Dropped Heavy Explosive Trap. 00895_ Trap Extractor collected Heavy Explosive Trap. 00895_ Dropped Heavy Explosive Trap. 00896_ Trap Extractor collected Heavy Explosive Trap. 00896_ Aluminum Leg destroyed. 00897_ Trap Extractor dropped Heavy Explosive Trap. Map ----- +----------------------------------------------------+ | ?????????????????????????????????????????????????? | | ?????????????????????????????????????????????????? | | ?????????????????????????????????????????????????? | | ?????????????????????????????????????????????????? | | ?????????????????????????????????????????????????? | | ?????????????????????????????????????????????????? | | ?????????????????????????????????????????????????? | | ?????????????????????????????????????????????????? | | ?????????????????????????????????????????????????? | | ?????????????????????????????????????????????????? | | ?????????????????????????????????????????????????? | | ?????????????????????????????????????????????????? | | ?????????????????????????????????????????????????? | | ??????????????????????????##?????????????????????? | | ?????????????????????????# #????????#????????????? | | ?????????????????????#### #####?## #????????????? | | ?????????????????????# # ##a ##???????????? | | ?????????????????????# # ##??????????? | | ????????????????# #### # $ ???????????? | | ?????????????????? !% ?????????????? | | ?????????????????#### # a* ????????????????? | | ????????????????## # a #??????????????????? | | ?????????###???## a& #???????????????????? | | ???????# # #### # aa#####????????????????? | | ??????# t =% [a&### ##???????????????? | | ???????# ! @&## ####????????????? | | ???????# ##### ## ##???????????? | | ??????????###??# ### #???????????? | | ???????????????# " #### ## ???????????? | | ???????????????## ##?# #### ???????????? | | ????????????????# ##?## #??## ???????????? | | ????????????????## * ###??# #???##???????????? | | ?????????????????## ##????# ##???#???????????? | | ??????????????????# =#?????# ##??????????????? | | ??????????????????# #?????## ##?????????????? | | ?????????????###### ##?????# ###???????????? | | ?????????????# """" ##???## ???????????? | | ?????????????# """" T#???# ???????????? | | ?????????????# [""% ##???# ## ???????????? | | ?????????????# * #????# ### #???????????? | | ?????????????# = #????## ##?# #???????????? | | ?????????????#### #####?????####??# #???????????? | | ????????????????# #???????????????# #???????????? | | ????????????????# #####???????????# #???????????? | | ????????????????# #???????????# ???????????? | | ????????????????##### #?????????### ???????????? | | ????????????????????# #????????## ???????????? | | ????????????????????# ###?????## ???????????? | | ????????????????##### ###??## ???????????? | | ????????????????# ##?# ???????????? | +----------------------------------------------------+ Best States ------------- Heat Dissipation 25 Energy Generation 14 Energy Capacity 140 Matter Stores 300 Matter Capacity 300 Sight Range 16 Terrain Scan Density 10 Evasion (%) 45 Trap Extractor Capacity 4 Item Schematics ----------------- None Robot Schematics ------------------ None Fabricated ------------ Nothing Repaired ---------- Nothing Alien Tech Used ----------------- None Achievements -------------- None Challenges ------------ None Game ------ Seed DataHardenedShovel Manual? 0 Play Time 00:13:23 Cumulative 57.7 hours Start 2025.09.21 @ 01:40:30 End 2025.09.21 @ 02:13:32 Sessions 2 Manual Loads 0 Difficulty Rogue Special Mode None Game No. 63 Rogue 63 Adventurer 0 Explorer 0 Win Type - Total 0 Types 0/0/0/0/0/0/0/0/0/0 Lore% 18 Gallery% 31 Achievement% 27 Wizard Run 0 Options --------- Layout 1 ASCII 0 Keyboard 0 Movement Numpad Keybinds 0 Fullscreen 1 Font 32/SmallcapsGlow Map View 77x35 Zoom Use 0% Tactical HUD 1 Map Filters NONE Filters NONE Steam 1 RUN: 2e758b84-4e0f-4fc0-adfe-1b1ecfcf103c